Workbook

Sheet Serviceability
C3: Serviceability Calculator (Residential)
D4: RedZed Lending Solutions Pty Ltd (ACL 311128)
D6: Information can be entered in the clear boxes, the grey boxes contain RedZed calculations.
D8: Application name - mandatory
D10: Income Table | G10: Gross Annual | L10: Net Monthly
D12: Personal Income | F12: Select Household
D13: Applicant / Guarantor 1 | E13: PAYG/Self Employed - Alt Doc Declaration/Self Employed - Full Doc | L13: ='Tax Calc'!I5 -> 0
D14: Applicant / Guarantor 2 | E14: PAYG/Self Employed - Alt Doc Declaration/Self Employed - Full Doc | L14: ='Tax Calc'!I6 -> 0
D15: Applicant / Guarantor 3 | E15: PAYG/Self Employed - Alt Doc Declaration/Self Employed - Full Doc | L15: ='Tax Calc'!I7 -> 0
D16: Applicant / Guarantor 4 | E16: PAYG/Self Employed - Alt Doc Declaration/Self Employed - Full Doc | L16: ='Tax Calc'!I8 -> 0
F18: Select Household | G18: Enter Source of Income
D19: Applicant / Guarantor 1 | E19: Other Regular Monthly Income (eg - Centrelink payments, investments)
D20: Applicant / Guarantor 2 | E20: Other Regular Monthly Income (eg - Centrelink payments, investments)
D21: Applicant / Guarantor 3 | E21: Other Regular Monthly Income (eg - Centrelink payments, investments)
D22: Applicant / Guarantor 4 | E22: Other Regular Monthly Income (eg - Centrelink payments, investments)
D24: Rental Income | E24: Existing | L24: =G24*0.8/12 -> 0
D25: Rental Income | E25: New | L25: =G25*0.8/12 -> 0
D27: Company Income (only to be used if the company is the loan applicant)
D28: *If a guarantor's income is also required to help with serviceability,
D29: all company and guarantor debts, and living expenses need to be included
D30: Company Net Profit Before Tax - Full Doc or Alt Doc Self Certified | L30: =(G30-(G30*Table_Company_Tax_Rate))/12 -> 0
D31: =IF(G30 <> 0, "Only NPBT from the borrowing Company entity can be entered in this field. Other related company NPBT needs to be allocated to the director(s)/guarantor(s)", 0) -> 0
D32: Total Monthly Net Income | L32: =SUM(L13,L14,L15,L16,L19,L20,L21,L22,L24,L25,L30) -> 0
D35: Monthly Living Expenses
D37: Applicants(s) declared expenses - mandatory
D38: Ongoing (combined) standard monthly living expenses declared by applicant(s)
D40: RedZed Living Allowance | F40: Select Household
D41: Number of adults - household 1 | H41: =Tables!E84 -> 
D42: Number of dependant children - household 1
D43: Number of adults - household 2 | H43: =Tables!E85 -> 
D44: Number of dependant children - household 2
D46: Total Monthly Living Expenses used in assessment | L46: =MAX(SUM(L41:L44),G38) -> 0
D49: Available Income | L49: =Tables!B313 -> 0
D51: Commitments | L51: Monthly
D53: RedZed Loan Applied For
G54: Loan Amount | H54: Years | I54: Interest Only Term | J54: Interest Rate
E55: Loan 1 | L55: =Tables!B319 -> 0
E56: Loan 2 | L56: =Tables!B320 -> 0
E57: Loan 3 | L57: =Tables!B321 -> 0
D58: Note: An interest rate buffer is automatically applied by the calculator. You do not need to apply a separate buffer.
G59: Limit | I59: Financier
D60: Existing Loans | E60: Loan 1 - Existing Secured
E61: Loan 2 - Existing Secured
E62: Loan 3 - Existing Unsecured
E63: Loan 4 - Existing Unsecured
G65: Total Credit Limits
D66: Credit Cards | I66: (@3.82%) | L66: =G66*3.82% -> 0
D68: Maintenance / On Going Rent
D70: Other Fixed Monthly Repayments
D72: Total Monthly Commitments | L72: =SUM(L55:L70) -> 0
I74: Debt Servicing Ratio | L74: (DSR)
D75: This Serviceability Calculator is intended as a guide only and no loan approval can be assumed on the basis of the results of this calculator. All applications remain subject to the normal credit and approval criteria of RedZed Lending Solutions Pty Ltd. | L75: =IFERROR('Serviceability Calc'!C22,0) -> 0
I77: DTI must also be met for Regulated Loans
I78: For Company Borrowers DSR must be >1.10
I79: For IO Inv loans > 75% DSR must be >1.10
D80: Debt to Income Ratio - minimum requirements - Regulated Loans Only | L80: DTI
D81: Income Type | E81: DTI >6.0x - 7.0x | F81: DTI >7.0x-<8.0x | G81: DTI >8.0x | L81: =IFERROR((SUM(G55:G57)+SUM(G60:G63)+G66)/(SUM(G13:G16)+SUM(L19:L22)*12+SUM(G24:G25)),"") -> 
D82: Self Employed | E82: DSR >1.10 (>=1.06 with rental income) | F82: DSR >1.10 | G82: Contact your BDM
D83: Self Employed + PAYG (PAYG<25% of total income) | E83: DSR >1.10 (>=1.06 with rental income) | F83: Contact your BDM | G83: Contact your BDM
D84: PAYG Only (or PAYG >25% of total income) | E84: Max DTI 6.5x DSR >1.10 (DSR >=1.06 with rental income) | F84: Contact your BDM | G84: Contact your BDM
D87: I, the Introducer, confirm that reasonable enquiries about the applicant(s) current and ongoing financial situation have been undertaken and are reflected in the figures entered into this calculation. The applicants(s) have been given sufficient time to consider the declared monthly living expenses amount which has been derived following due consideration.
M92: ='Version Control'!I1 -> v10.24 230823

Sheet HEM (hidden)
A1: Income Range ($) | B1: Single Adult | C1: Single Adult +1 | D1: Single Adult +2 | E1: Single Adult +3 | F1: Single Adult +4 | G1: Single Adult +5 | H1: Single Adult +6 | I1: Couple | J1: Couple +1 | K1: Couple +2 | L1: Couple +3 | M1: Couple +4 | N1: Couple +5 | O1: Couple +6
A2: 0 - 25,000 | B2: 1246.505055 | C2: 1761.068893 | D2: 2255.302548 | E2: 2809.026141 | F2: 3225.463307 | G2: 3937.586206 | H2: 4637.350029 | I2: 2447.200868 | J2: 2885.704413 | K2: 3200.928984 | L2: 3558.475251 | M2: 4156.770327 | N2: 4505.924489 | O2: 4855.078651
A3: 25,001 - 37,000 | B3: 1320.646605 | C3: 1761.068893 | D3: 2255.302548 | E3: 2809.026141 | F3: 3225.463307 | G3: 3937.586206 | H3: 4637.350029 | I3: 2447.200868 | J3: 2885.704413 | K3: 3200.928984 | L3: 3558.475251 | M3: 4156.770327 | N3: 4505.924489 | O3: 4855.078651
A4: 37,001 - 50,000 | B4: 1380.559721 | C4: 1820.88421 | D4: 2314.955176 | E4: 2809.026141 | F4: 3225.463307 | G4: 3937.586206 | H4: 4637.350029 | I4: 2507.025896 | J4: 2885.704413 | K4: 3200.928984 | L4: 3558.475251 | M4: 4156.770327 | N4: 4505.924489 | O4: 4855.078651
A5: 50,001 - 62,000 | B5: 1466.303643 | C5: 1906.488263 | D5: 2400.326208 | E5: 2894.164153 | F5: 3310.50285 | G5: 3937.586206 | H5: 4637.350029 | I5: 2592.643847 | J5: 2971.241314 | K5: 3286.563241 | L5: 3558.475251 | M5: 4156.770327 | N5: 4505.924489 | O5: 4855.078651
A6: 62,001 - 74,000 | B6: 1634.059875 | C6: 2073.970903 | D6: 2567.352829 | E6: 3060.734754 | F6: 3476.88094 | G6: 3937.586206 | H6: 4637.350029 | I6: 2760.153678 | J6: 3138.592926 | K6: 3454.104933 | L6: 3726.296512 | M6: 4156.770327 | N6: 4505.924489 | O6: 4855.078651
A7: 74,001 - 99,000 | B7: 1876.100709 | C7: 2315.617048 | D7: 2808.341081 | E7: 3301.065114 | F7: 3716.933589 | G7: 4177.141809 | H7: 4637.350029 | I7: 3001.839055 | J7: 3380.049729 | K7: 3695.836178 | L7: 3968.431121 | M7: 4398.381176 | N7: 4747.516706 | O7: 5096.652236
A8: 99,001 - 124,000 | B8: 2222.408429 | C8: 2661.359738 | D8: 3153.14255 | E8: 3644.925362 | F8: 4060.396003 | G8: 4519.892897 | H8: 4979.38979 | I8: 3347.637877 | J8: 3725.521683 | K8: 4041.701097 | L8: 4314.873167 | M8: 4744.074117 | N8: 5093.183176 | O8: 5442.292236
A9: 124,001 - 149,000 | B9: 2544.157179 | C9: 2982.583915 | D9: 3473.4921 | E9: 3964.400284 | F9: 4379.501931 | G9: 4838.338119 | H9: 5297.174307 | I9: 3668.914205 | J9: 4046.494324 | K9: 4363.038531 | L9: 4636.7468 | M9: 5065.251735 | N9: 5414.336117 | O9: 5763.4205
A10: 149,001 - 173,000 | B10: 2926.857808 | C10: 3364.660277 | D10: 3854.528321 | E10: 4344.396365 | F10: 4759.058578 | G10: 5217.10877 | H10: 5675.158963 | I10: 4051.052597 | J10: 4428.271499 | K10: 4745.249781 | L10: 5019.595746 | M10: 5447.272877 | N10: 5796.327947 | O10: 6145.383017
A11: 173,001 - 198,000 | B11: 3117.712978 | C11: 3555.204081 | D11: 4044.553121 | E11: 4533.902161 | F11: 4948.345292 | G11: 5406.00337 | H11: 5863.661448 | I11: 4241.627497 | J11: 4618.666177 | K11: 4935.860575 | L11: 5210.524923 | M11: 5637.788867 | N11: 5986.82921 | O11: 6335.869552
A12: 198,001 - 248,000 | B12: 3328.095918 | C12: 3765.244045 | D12: 4254.021402 | E12: 4742.798758 | F12: 5157.000562 | G12: 5614.226722 | H12: 6071.452883 | I12: 4451.701321 | J12: 4828.541508 | K12: 5145.974808 | L12: 5420.989522 | M12: 5847.798651 | N12: 6196.822984 | O12: 6545.847316
A13: 248,001 - 309,000 | B13: 3876.240372 | C13: 4312.494553 | D13: 4799.781835 | E13: 5287.069116 | F13: 5700.64192 | G13: 6156.742307 | H13: 6612.842694 | I13: 4999.040435 | J13: 5375.363249 | K13: 5693.418161 | L13: 5969.346366 | M13: 6394.969751 | N13: 6743.95208 | O13: 7092.934409
A14: 309,000 - 371,000 | B14: 4402.163142 | C14: 4837.559541 | D14: 5323.417468 | E14: 5809.275396 | F14: 6222.244449 | G14: 6677.264775 | H14: 7132.285102 | I14: 5524.190828 | J14: 5900.017242 | K14: 6218.668568 | L14: 6495.473231 | M14: 6919.958941 | N14: 7268.900969 | O14: 7617.842997
A15: 371,001 - 619,000 | B15: 4582.973582 | C15: 5018.075078 | D15: 5503.441384 | E15: 5988.80769 | F15: 6401.569271 | G15: 6856.218193 | H15: 7310.867115 | I15: 5704.735673 | J15: 6080.391426 | K15: 6399.247797 | L15: 6676.353783 | M15: 7100.448364 | N15: 7449.376537 | O15: 7798.30471
A19: Income Range lookup | B19: Row Offset Value | D19: Dependents/Household Number | F19: 1 | G19: 2 | H19: 3 | I19: 4 | J19: 5 | K19: 6 | L19: 7
A20: 25001 | B20: 1 | D20: 0 | F20: 0 | G20: 7 | H20: 13 | I20: 13 | J20: 13 | K20: 13 | L20: 13
A21: 37001 | B21: 2 | D21: 1 | F21: 1 | G21: 8 | H21: 13 | I21: 13 | J21: 13 | K21: 13 | L21: 13
A22: 50001 | B22: 3 | D22: 2 | F22: 2 | G22: 9 | H22: 13 | I22: 13 | J22: 13 | K22: 13 | L22: 13
A23: 62001 | B23: 4 | D23: 3 | F23: 3 | G23: 10 | H23: 13 | I23: 13 | J23: 13 | K23: 13 | L23: 13
A24: 74001 | B24: 5 | D24: 4 | F24: 4 | G24: 11 | H24: 13 | I24: 13 | J24: 13 | K24: 13 | L24: 13
A25: 99001 | B25: 6 | D25: 5 | F25: 5 | G25: 12 | H25: 13 | I25: 13 | J25: 13 | K25: 13 | L25: 13
A26: 124001 | B26: 7 | D26: 6 | F26: 6 | G26: 13 | H26: 13 | I26: 13 | J26: 13 | K26: 13 | L26: 13
A27: 149001 | B27: 8 | D27: 7 | F27: 13 | G27: 13 | H27: 13 | I27: 13 | J27: 13 | K27: 13 | L27: 13
A28: 173001 | B28: 9 | D28: 8 | F28: 13 | G28: 13 | H28: 13 | I28: 13 | J28: 13 | K28: 13 | L28: 13
A29: 198001 | B29: 10 | D29: 9 | F29: 13 | G29: 13 | H29: 13 | I29: 13 | J29: 13 | K29: 13 | L29: 13
A30: 248001 | B30: 11 | D30: 10 | F30: 13 | G30: 13 | H30: 13 | I30: 13 | J30: 13 | K30: 13 | L30: 13
A31: 309001 | B31: 12 | D31: 11 | F31: 13 | G31: 13 | H31: 13 | I31: 13 | J31: 13 | K31: 13 | L31: 13
A32: 371001 | B32: 13 | D32: 12 | F32: 13 | G32: 13 | H32: 13 | I32: 13 | J32: 13 | K32: 13 | L32: 13
D39: Household 1 | H39: Household 2
D40: Gross Income | F40: =IF(EXACT(Serviceability!F13,D39),Serviceability!G13,0)+IF(EXACT(Serviceability!F14, D39),Serviceability!G14,0)+IF(EXACT(Serviceability!F15, D39),Serviceability!G15,0)+IF(EXACT(Serviceability!F16, D39),Serviceability!G16,0)+IF(EXACT(Serviceability!F19, D39),Serviceability!L19*12,0)+IF(EXACT(Serviceability!F20, D39),Serviceability!L20*12,0)+IF(EXACT(Serviceability!F21, D39),Serviceability!L21*12,0)+IF(EXACT(Serviceability!F22, D39),Serviceability!L22*12,0) -> 0 | H40: Gross Income | J40: =IF(EXACT(Serviceability!F13, H39),Serviceability!G13,0)+IF(EXACT(Serviceability!F14,H39),Serviceability!G14,0)+IF(EXACT(Serviceability!F15,H39),Serviceability!G15,0)+IF(EXACT(Serviceability!F16,H39),Serviceability!G16,0)+IF(EXACT(Serviceability!F19, H39),Serviceability!L19*12,0)+IF(EXACT(Serviceability!F20, H39),Serviceability!L20*12,0)+IF(EXACT(Serviceability!F21, H39),Serviceability!L21*12,0)+IF(EXACT(Serviceability!F22, H39),Serviceability!L22*12,0) -> 0
D41: Single/Couple | F41: =+Serviceability!$G$41 -> 0 | H41: Single/Couple | J41: =Serviceability!G43 -> 0
D42: Dependents | F42: =+Serviceability!$G$42 -> 0 | H42: Dependents | J42: =Serviceability!G44 -> 0
D43: HEM Row Offset Value | F43: =IFERROR(VLOOKUP(F40,HEM!$A$20:$B$32,2,TRUE),0) -> 0 | H43: HEM Row Offset Value | J43: =IFERROR(VLOOKUP(J40,HEM!$A$20:$B$32,2,TRUE),0) -> 0
D44: HEM Column Offset Value | F44: =OFFSET($E$20,F42,F41) -> 0 | H44: HEM Column Offset Value | J44: =OFFSET($E$20,J42,J41) -> 0
D45: HEM Starting Value | F45: =OFFSET(B2,0,0) -> 1246.505055 | H45: HEM Starting Value | J45: =OFFSET(F2,0,0) -> 3225.463307
D46: HEM Min Living Expense | F46: =IF(F40=0, 0, OFFSET($B$2,F43,F44)) -> 0 | H46: HEM Min Living Expense | J46: =IF(J40=0,0,OFFSET($B$2,J43,J44)) -> 0

Sheet Tables (hidden)
A2: Tax
G3: Flood Levy
A4: Wages Over | B4: Not to Exceed | C4: Tax Rate | G4: Taxable income | H4: Flood levy on this income
A5: 0 | B5: 18200 | C5: 0 | G5: $0 to $50,000 | H5: Nil | I5: 0 | J5: 50000 | K5: 0
A6: =B5+1 -> 18201 | B6: 45000 | C6: 0.19 | D6: =D5+C5*(B5-A5) -> 0 | G6: $50,001 to $100,000 | H6: Half a cent for each $1 over $50,000 | I6: 50001 | J6: 100000 | K6: 0 | L6: =(J6-J5)*K6 -> 0
A7: =B6+1 -> 45001 | B7: 120000 | C7: 0.325 | D7: =ROUNDUP(D6+C6*(B6-A6),0) -> 5092 | G7: Over $100,000 | H7: $250 plus 1c for each $1 over $100,000 | I7: =J6+1 -> 100001 | K7: 0
A8: =B7+1 -> 120001 | B8: 180000 | C8: 0.37 | D8: =ROUNDUP(D7+C7*(B7-A7),0) -> 29467
A9: =B8+1 -> 180001 | C9: 0.45 | D9: =ROUNDUP(D8+C8*(B8-A8),0) -> 51667
A12: Medicare Levy
G13: Taxable income | H13: Tax on this income
A14: 0 | B14: 16284 | C14: 0 | E14: not currently used | G14: 0 - $18,200 | H14: Nil
A15: 16284 | B15: 17604 | C15: 0.2 | G15: $18,201 - $37,000 | H15: 19c for each $1 over $18,200
A16: 17604+ | C16: 0.02 | G16: $37,001 - $90,000 | H16: $3,572 plus 32.5c for each $1 over $37,000
G17: $90,001 - $180,000 | H17: $17,547 plus 37c for each $1 over $87,000
G18: $180,001 and over | H18: $54,547 plus 45c for each $1 over $180,000
A20: Company Tax
A22: Rate | B22: 0.275
A28: APR Buffer | B28: 0.02
A29: Minimum Rate | B29: 0.07
A31: RedZed Loan Applied For: Repayment With Buffer | C31: Buffered % | D31: Minimum % | E31: Rate % | F31: Buffer % | G31: Buffered % | H31: Total Term | I31: Interest Only Term | J31: Net Term | K31: Amount
A32: Buffered Loan 1 | B32: =IF(Serviceability!H55=0,0,-PMT((D32)/12,J32*12,Serviceability!G55)) -> 0 | C32: =G32 -> 0.02 | D32: =IF(C32>=$B$29,C32,$B$29) -> 0.07 | E32: =Serviceability!J55 -> 0 | F32: =$B$28 -> 0.02 | G32: =E32+F32 -> 0.02 | H32: =Serviceability!H55 -> 0 | I32: =Serviceability!I55 -> 0 | J32: =H32-I32 -> 0 | K32: =Serviceability!G55 -> 0
A33: Buffered Loan 2 | B33: =IF(Serviceability!H56=0,0,-PMT((D33)/12,J33*12,Serviceability!G56)) -> 0 | C33: =G33 -> 0.02 | D33: =IF(C33>=$B$29,C33,$B$29) -> 0.07 | E33: =Serviceability!J56 -> 0 | F33: =$B$28 -> 0.02 | G33: =E33+F33 -> 0.02 | H33: =Serviceability!H56 -> 0 | I33: =Serviceability!I56 -> 0 | J33: =H33-I33 -> 0
A34: Buffered Loan 3 | B34: =IF(Serviceability!H57=0,0,-PMT((D34)/12,J34*12,Serviceability!G57)) -> 0 | C34: 0.02 | D34: 0.07 | E34: =Serviceability!J57 -> 0 | F34: 0.02 | G34: 0.02 | H34: =Serviceability!H57 -> 0 | I34: =Serviceability!I57 -> 0 | J34: 0 | K34: =Serviceability!G57 -> 0
A37: Existing Loan: Repayment With Buffer
A38: Buffered Loan 1 | B38: 0.2 | C38: =Serviceability!L60*(1+Tables!B38) -> 0 | G38: =Serviceability!L60 -> 0 | H38: =Serviceability!E60 -> Loan 1 - Existing Secured
A39: Buffered Loan 2 | B39: 0.2 | C39: =Serviceability!L61*(1+Tables!B39) -> 0 | G39: =Serviceability!L61 -> 0 | H39: =Serviceability!E61 -> Loan 2 - Existing Secured
A42: Additional Fees for Serviceability
A43: Fees - Loan 1 | B43: 15 | C43: =IF(Serviceability!L55=0,0,15) -> 0 | D43: Monthly Account Keeping Fee Resi
A44: Fees - Loan 2 | B44: 15 | C44: =IF(Serviceability!L56=0,0,15) -> 0 | D44: Monthly Account Keeping Fee Resi
A45: Fees - Loan 3 | B45: 15 | C45: =IF(Serviceability!L57=0,0,15) -> 0 | D45: Monthly Account Keeping Fee Resi
A49: Column1 | B49: Single Adult | C49: Single Adult + 1 Dependant | D49: Single Adult + 2 Dependants | E49: Single Adult + 3 Dependants | F49: Single Adult + 4 Dependants | G49: Single Adult + 5 Dependants | H49: Single Adult + 6 Dependants | I49: Couple | J49: Couple + 1 Dependant | K49: Couple + 2 Dependants | L49: Couple + 3 Dependants | M49: Couple + 4 Dependants | N49: Couple + 5 Dependants | O49: Couple + 6 Dependants
A50: Income Range ($) | B50: Proposed Benchmark | C50: Proposed Benchmark | D50: Proposed Benchmark | E50: Proposed Benchmark | F50: Proposed Benchmark | G50: Proposed Benchmark | H50: Proposed Benchmark | I50: Proposed Benchmark | J50: Proposed Benchmark | K50: Proposed Benchmark | L50: Proposed Benchmark | M50: Proposed Benchmark | N50: Proposed Benchmark | O50: Proposed Benchmark
A51: 0 - 25,000 | B51: 1246.505055 | C51: 1761.068893 | D51: 2255.302548 | E51: 2809.026141 | F51: 3225.463307 | G51: 3937.586206 | H51: 4637.350029 | I51: 2447.200868 | J51: 2885.704413 | K51: 3200.928984 | L51: 3558.475251 | M51: 4156.770327 | N51: 4505.924489 | O51: 4855.078651
A52: 25,001 - 37,000 | B52: 1320.646605 | C52: 1761.068893 | D52: 2255.302548 | E52: 2809.026141 | F52: 3225.463307 | G52: 3937.586206 | H52: 4637.350029 | I52: 2447.200868 | J52: 2885.704413 | K52: 3200.928984 | L52: 3558.475251 | M52: 4156.770327 | N52: 4505.924489 | O52: 4855.078651
A53: 37,001 - 50,000 | B53: 1380.559721 | C53: 1820.88421 | D53: 2314.955176 | E53: 2809.026141 | F53: 3225.463307 | G53: 3937.586206 | H53: 4637.350029 | I53: 2507.025896 | J53: 2885.704413 | K53: 3200.928984 | L53: 3558.475251 | M53: 4156.770327 | N53: 4505.924489 | O53: 4855.078651
A54: 50,001 - 62,000 | B54: 1466.303643 | C54: 1906.488263 | D54: 2400.326208 | E54: 2894.164153 | F54: 3310.50285 | G54: 3937.586206 | H54: 4637.350029 | I54: 2592.643847 | J54: 2971.241314 | K54: 3286.563241 | L54: 3558.475251 | M54: 4156.770327 | N54: 4505.924489 | O54: 4855.078651
A55: 62,001 - 74,000 | B55: 1634.059875 | C55: 2073.970903 | D55: 2567.352829 | E55: 3060.734754 | F55: 3476.88094 | G55: 3937.586206 | H55: 4637.350029 | I55: 2760.153678 | J55: 3138.592926 | K55: 3454.104933 | L55: 3726.296512 | M55: 4156.770327 | N55: 4505.924489 | O55: 4855.078651
A56: 74,001 - 99,000 | B56: 1876.100709 | C56: 2315.617048 | D56: 2808.341081 | E56: 3301.065114 | F56: 3716.933589 | G56: 4177.141809 | H56: 4637.350029 | I56: 3001.839055 | J56: 3380.049729 | K56: 3695.836178 | L56: 3968.431121 | M56: 4398.381176 | N56: 4747.516706 | O56: 5096.652236
A57: 99,001 - 124,000 | B57: 2222.408429 | C57: 2661.359738 | D57: 3153.14255 | E57: 3644.925362 | F57: 4060.396003 | G57: 4519.892897 | H57: 4979.38979 | I57: 3347.637877 | J57: 3725.521683 | K57: 4041.701097 | L57: 4314.873167 | M57: 4744.074117 | N57: 5093.183176 | O57: 5442.292236
A58: 124,001 - 149,000 | B58: 2544.157179 | C58: 2982.583915 | D58: 3473.4921 | E58: 3964.400284 | F58: 4379.501931 | G58: 4838.338119 | H58: 5297.174307 | I58: 3668.914205 | J58: 4046.494324 | K58: 4363.038531 | L58: 4636.7468 | M58: 5065.251735 | N58: 5414.336117 | O58: 5763.4205
A59: 149,001 - 173,000 | B59: 2926.857808 | C59: 3364.660277 | D59: 3854.528321 | E59: 4344.396365 | F59: 4759.058578 | G59: 5217.10877 | H59: 5675.158963 | I59: 4051.052597 | J59: 4428.271499 | K59: 4745.249781 | L59: 5019.595746 | M59: 5447.272877 | N59: 5796.327947 | O59: 6145.383017
A60: 173,001 - 198,000 | B60: 3117.712978 | C60: 3555.204081 | D60: 4044.553121 | E60: 4533.902161 | F60: 4948.345292 | G60: 5406.00337 | H60: 5863.661448 | I60: 4241.627497 | J60: 4618.666177 | K60: 4935.860575 | L60: 5210.524923 | M60: 5637.788867 | N60: 5986.82921 | O60: 6335.869552
A61: 198,001 - 248,000 | B61: 3328.095918 | C61: 3765.244045 | D61: 4254.021402 | E61: 4742.798758 | F61: 5157.000562 | G61: 5614.226722 | H61: 6071.452883 | I61: 4451.701321 | J61: 4828.541508 | K61: 5145.974808 | L61: 5420.989522 | M61: 5847.798651 | N61: 6196.822984 | O61: 6545.847316
A62: 248,001 - 309,000 | B62: 3876.240372 | C62: 4312.494553 | D62: 4799.781835 | E62: 5287.069116 | F62: 5700.64192 | G62: 6156.742307 | H62: 6612.842694 | I62: 4999.040435 | J62: 5375.363249 | K62: 5693.418161 | L62: 5969.346366 | M62: 6394.969751 | N62: 6743.95208 | O62: 7092.934409
A63: 309,000 - 371,000 | B63: 4402.163142 | C63: 4837.559541 | D63: 5323.417468 | E63: 5809.275396 | F63: 6222.244449 | G63: 6677.264775 | H63: 7132.285102 | I63: 5524.190828 | J63: 5900.017242 | K63: 6218.668568 | L63: 6495.473231 | M63: 6919.958941 | N63: 7268.900969 | O63: 7617.842997
A64: 371,001 - 619,000 | B64: 4582.973582 | C64: 5018.075078 | D64: 5503.441384 | E64: 5988.80769 | F64: 6401.569271 | G64: 6856.218193 | H64: 7310.867115 | I64: 5704.735673 | J64: 6080.391426 | K64: 6399.247797 | L64: 6676.353783 | M64: 7100.448364 | N64: 7449.376537 | O64: 7798.30471
A70: Household 1
A71: Household 2 | B71: Monthly Income | F71: Other Income | H71: Company
B73: Household 1 | C73: Household 2 | F73: Household 1 | G73: Household 2 | I73: Always Household 1
A74: Applicant / Guarantor 1 | B74: =IF(EXACT(Serviceability!F13, "Household 1"),Serviceability!G13,0) -> 0 | C74: =IF(EXACT(Serviceability!F13, "Household 2"),Serviceability!G13,0) -> 0 | E74: Applicant / Guarantor 1 | F74: =IF(EXACT(Serviceability!F19, "Household 1"),Serviceability!L19,0) -> 0 | G74: =IF(EXACT(Serviceability!F19, "Household 2"),Serviceability!L19,0) -> 0 | H74: Applicant / Guarantor 1 | I74: =Serviceability!G30 -> 0
A75: Applicant / Guarantor 2 | B75: =IF(EXACT(Serviceability!F14, "Household 1"),Serviceability!G14,0) -> 0 | C75: =IF(EXACT(Serviceability!F14, "Household 2"),Serviceability!G14,0) -> 0 | E75: Applicant / Guarantor 2 | F75: =IF(EXACT(Serviceability!F20, "Household 1"),Serviceability!L20,0) -> 0 | G75: =IF(EXACT(Serviceability!F20, "Household 2"),Serviceability!L20,0) -> 0
A76: Applicant / Guarantor 3 | B76: =IF(EXACT(Serviceability!F15, "Household 1"),Serviceability!G15,0) -> 0 | C76: =IF(EXACT(Serviceability!F15, "Household 2"),Serviceability!G15,0) -> 0 | E76: Applicant / Guarantor 3 | F76: =IF(EXACT(Serviceability!F21, "Household 1"),Serviceability!L21,0) -> 0 | G76: =IF(EXACT(Serviceability!F21, "Household 2"),Serviceability!L21,0) -> 0
A77: Applicant / Guarantor 4 | B77: =IF(EXACT(Serviceability!F16, "Household 1"),Serviceability!G16,0) -> 0 | C77: =IF(EXACT(Serviceability!F16, "Household 2"),Serviceability!G16,0) -> 0 | E77: Applicant / Guarantor 4 | F77: =IF(EXACT(Serviceability!F22, "Household 1"),Serviceability!L22,0) -> 0 | G77: =IF(EXACT(Serviceability!F22, "Household 2"),Serviceability!L22,0) -> 0
A78: Applicant Totals | B78: =SUM(B74:B77,F78,I74) -> 0 | C78: =SUM(C74:C77,G78) -> 0 | E78: Applicant Totals | F78: =SUM(F74:F77)*12 -> 0 | G78: =SUM(G74:G77)*12 -> 0
A80: Adults - household | C80: =IF(C78<=59999,"test",IF(B3>93,"A",IF(B3>89,"A-",IF(B3>87,"B+",IF(B3>83,"B",IF(B3>79,"B-", IF(B3>77,"C+",IF(B3>73,"C",IF(B3>69,"C-",IF(B3>57,"D+",IF(B3>53,"D",IF(B3>49,"D-","")))))))))))) -> test
A81: Adults - household - new
A82: Dependant children - household
A84: Adult | B84: =Serviceability!G41 -> 0 | C84: =Serviceability!G43 -> 0 | E84: =IF(Serviceability!G41>2, "Please call 1300 722 462 for assistance with calculation "," ") ->  | N84: offset amount
A85: Dependent | B85: =Serviceability!G42 -> 0 | C85: =Serviceability!G44 -> 0 | E85: =IF(Serviceability!G43>2, "Please call 1300 722 462 for assistance with calculation "," ") -> 
B86: ="Adult-" & B84 & ",Dependents-" & B85 -> Adult-0,Dependents-0 | C86: ="Adult-" & C84 & ",Dependents-" & C85 -> Adult-0,Dependents-0
A88: LookupKey | B88: Household | C88: Income Range | D88: Living Expense
A89: =B89 & ":" & C89 -> Adult-1,Dependents-0:0 - 25,000 | B89: Adult-1,Dependents-0 | C89: 0 - 25,000 | D89: 1246.505055
A90: =B90 & ":" & C90 -> Adult-1,Dependents-0:25,001 - 37,000 | B90: Adult-1,Dependents-0 | C90: 25,001 - 37,000 | D90: 1320.646605
A91: Adult-1,Dependents-0:37,001 - 50,000 | B91: Adult-1,Dependents-0 | C91: 37,001 - 50,000 | D91: 1380.559721
A92: Adult-1,Dependents-0:50,001 - 62,000 | B92: Adult-1,Dependents-0 | C92: 50,001 - 62,000 | D92: 1466.303643
A93: Adult-1,Dependents-0:62,001 - 74,000 | B93: Adult-1,Dependents-0 | C93: 62,001 - 74,000 | D93: 1634.059875
A94: Adult-1,Dependents-0:74,001 - 99,000 | B94: Adult-1,Dependents-0 | C94: 74,001 - 99,000 | D94: 1876.100709
A95: Adult-1,Dependents-0:99,001 - 124,000 | B95: Adult-1,Dependents-0 | C95: 99,001 - 124,000 | D95: 2222.408429
A96: Adult-1,Dependents-0:124,001 - 149,000 | B96: Adult-1,Dependents-0 | C96: 124,001 - 149,000 | D96: 2544.157179
A97: Adult-1,Dependents-0:149,001 - 173,000 | B97: Adult-1,Dependents-0 | C97: 149,001 - 173,000 | D97: 2926.857808
A98: Adult-1,Dependents-0:173,001 - 198,000 | B98: Adult-1,Dependents-0 | C98: 173,001 - 198,000 | D98: 3117.712978
A99: Adult-1,Dependents-0:198,001 - 248,000 | B99: Adult-1,Dependents-0 | C99: 198,001 - 248,000 | D99: 3328.095918
A100: Adult-1,Dependents-0:248,001 - 309,000 | B100: Adult-1,Dependents-0 | C100: 248,001 - 309,000 | D100: 3876.240372
A101: Adult-1,Dependents-0:309,000 - 371,000 | B101: Adult-1,Dependents-0 | C101: 309,000 - 371,000 | D101: 4402.163142
A102: Adult-1,Dependents-0:371,001 - 619,000 | B102: Adult-1,Dependents-0 | C102: 371,001 - 619,000 | D102: 4582.973582
A104: Adult-1,Dependents-1:0 - 25,000 | B104: Adult-1,Dependents-1 | C104: 0 - 25,000 | D104: 1761.068893
A105: Adult-1,Dependents-1:25,001 - 37,000 | B105: Adult-1,Dependents-1 | C105: 25,001 - 37,000 | D105: 1761.068893
A106: Adult-1,Dependents-1:37,001 - 50,000 | B106: Adult-1,Dependents-1 | C106: 37,001 - 50,000 | D106: 1820.88421
A107: Adult-1,Dependents-1:50,001 - 62,000 | B107: Adult-1,Dependents-1 | C107: 50,001 - 62,000 | D107: 1906.488263
A108: Adult-1,Dependents-1:62,001 - 74,000 | B108: Adult-1,Dependents-1 | C108: 62,001 - 74,000 | D108: 2073.970903
A109: Adult-1,Dependents-1:74,001 - 99,000 | B109: Adult-1,Dependents-1 | C109: 74,001 - 99,000 | D109: 2315.617048
A110: Adult-1,Dependents-1:99,001 - 124,000 | B110: Adult-1,Dependents-1 | C110: 99,001 - 124,000 | D110: 2661.359738
A111: Adult-1,Dependents-1:124,001 - 149,000 | B111: Adult-1,Dependents-1 | C111: 124,001 - 149,000 | D111: 2982.583915
A112: Adult-1,Dependents-1:149,001 - 173,000 | B112: Adult-1,Dependents-1 | C112: 149,001 - 173,000 | D112: 3364.660277
A113: Adult-1,Dependents-1:173,001 - 198,000 | B113: Adult-1,Dependents-1 | C113: 173,001 - 198,000 | D113: 3555.204081
A114: Adult-1,Dependents-1:198,001 - 248,000 | B114: Adult-1,Dependents-1 | C114: 198,001 - 248,000 | D114: 3765.244045
A115: Adult-1,Dependents-1:248,001 - 309,000 | B115: Adult-1,Dependents-1 | C115: 248,001 - 309,000 | D115: 4312.494553
A116: Adult-1,Dependents-1:309,000 - 371,000 | B116: Adult-1,Dependents-1 | C116: 309,000 - 371,000 | D116: 4837.559541
A117: Adult-1,Dependents-1:371,001 - 619,000 | B117: Adult-1,Dependents-1 | C117: 371,001 - 619,000 | D117: 5018.075078
A119: =B119 & ":" & C119 -> Adult-1,Dependents-2:0 - 25,000 | B119: Adult-1,Dependents-2 | C119: 0 - 25,000 | D119: 2255.302548
A120: Adult-1,Dependents-2:25,001 - 37,000 | B120: Adult-1,Dependents-2 | C120: 25,001 - 37,000 | D120: 2255.302548
A121: Adult-1,Dependents-2:37,001 - 50,000 | B121: Adult-1,Dependents-2 | C121: 37,001 - 50,000 | D121: 2314.955176
A122: Adult-1,Dependents-2:50,001 - 62,000 | B122: Adult-1,Dependents-2 | C122: 50,001 - 62,000 | D122: 2400.326208
A123: Adult-1,Dependents-2:62,001 - 74,000 | B123: Adult-1,Dependents-2 | C123: 62,001 - 74,000 | D123: 2567.352829
A124: Adult-1,Dependents-2:74,001 - 99,000 | B124: Adult-1,Dependents-2 | C124: 74,001 - 99,000 | D124: 2808.341081
A125: Adult-1,Dependents-2:99,001 - 124,000 | B125: Adult-1,Dependents-2 | C125: 99,001 - 124,000 | D125: 3153.14255
A126: Adult-1,Dependents-2:124,001 - 149,000 | B126: Adult-1,Dependents-2 | C126: 124,001 - 149,000 | D126: 3473.4921
A127: Adult-1,Dependents-2:149,001 - 173,000 | B127: Adult-1,Dependents-2 | C127: 149,001 - 173,000 | D127: 3854.528321
A128: Adult-1,Dependents-2:173,001 - 198,000 | B128: Adult-1,Dependents-2 | C128: 173,001 - 198,000 | D128: 4044.553121
A129: Adult-1,Dependents-2:198,001 - 248,000 | B129: Adult-1,Dependents-2 | C129: 198,001 - 248,000 | D129: 4254.021402
A130: Adult-1,Dependents-2:248,001 - 309,000 | B130: Adult-1,Dependents-2 | C130: 248,001 - 309,000 | D130: 4799.781835
A131: Adult-1,Dependents-2:309,000 - 371,000 | B131: Adult-1,Dependents-2 | C131: 309,000 - 371,000 | D131: 5323.417468
A132: Adult-1,Dependents-2:371,001 - 619,000 | B132: Adult-1,Dependents-2 | C132: 371,001 - 619,000 | D132: 5503.441384
A134: =B134 & ":" & C134 -> Adult-1,Dependents-3:0 - 25,000 | B134: Adult-1,Dependents-3 | C134: 0 - 25,000 | D134: 2809.026141
A135: Adult-1,Dependents-3:25,001 - 37,000 | B135: Adult-1,Dependents-3 | C135: 25,001 - 37,000 | D135: 2809.026141
A136: Adult-1,Dependents-3:37,001 - 50,000 | B136: Adult-1,Dependents-3 | C136: 37,001 - 50,000 | D136: 2809.026141
A137: Adult-1,Dependents-3:50,001 - 62,000 | B137: Adult-1,Dependents-3 | C137: 50,001 - 62,000 | D137: 2894.164153
A138: Adult-1,Dependents-3:62,001 - 74,000 | B138: Adult-1,Dependents-3 | C138: 62,001 - 74,000 | D138: 3060.734754
A139: Adult-1,Dependents-3:74,001 - 99,000 | B139: Adult-1,Dependents-3 | C139: 74,001 - 99,000 | D139: 3301.065114
A140: Adult-1,Dependents-3:99,001 - 124,000 | B140: Adult-1,Dependents-3 | C140: 99,001 - 124,000 | D140: 3644.925362
A141: Adult-1,Dependents-3:124,001 - 149,000 | B141: Adult-1,Dependents-3 | C141: 124,001 - 149,000 | D141: 3964.400284
A142: Adult-1,Dependents-3:149,001 - 173,000 | B142: Adult-1,Dependents-3 | C142: 149,001 - 173,000 | D142: 4344.396365
A143: Adult-1,Dependents-3:173,001 - 198,000 | B143: Adult-1,Dependents-3 | C143: 173,001 - 198,000 | D143: 4533.902161
A144: Adult-1,Dependents-3:198,001 - 248,000 | B144: Adult-1,Dependents-3 | C144: 198,001 - 248,000 | D144: 4742.798758
A145: Adult-1,Dependents-3:248,001 - 309,000 | B145: Adult-1,Dependents-3 | C145: 248,001 - 309,000 | D145: 5287.069116
A146: Adult-1,Dependents-3:309,000 - 371,000 | B146: Adult-1,Dependents-3 | C146: 309,000 - 371,000 | D146: 5809.275396
A147: Adult-1,Dependents-3:371,001 - 619,000 | B147: Adult-1,Dependents-3 | C147: 371,001 - 619,000 | D147: 5988.80769
A150: =B150 & ":" & C150 -> Adult-1,Dependents-4:0 - 25,000 | B150: Adult-1,Dependents-4 | C150: 0 - 25,000 | D150: 3225.463307
A151: Adult-1,Dependents-4:25,001 - 37,000 | B151: Adult-1,Dependents-4 | C151: 25,001 - 37,000 | D151: 3225.463307
A152: Adult-1,Dependents-4:37,001 - 50,000 | B152: Adult-1,Dependents-4 | C152: 37,001 - 50,000 | D152: 3225.463307
A153: Adult-1,Dependents-4:50,001 - 62,000 | B153: Adult-1,Dependents-4 | C153: 50,001 - 62,000 | D153: 3310.50285
A154: Adult-1,Dependents-4:62,001 - 74,000 | B154: Adult-1,Dependents-4 | C154: 62,001 - 74,000 | D154: 3476.88094
A155: Adult-1,Dependents-4:74,001 - 99,000 | B155: Adult-1,Dependents-4 | C155: 74,001 - 99,000 | D155: 3716.933589
A156: Adult-1,Dependents-4:99,001 - 124,000 | B156: Adult-1,Dependents-4 | C156: 99,001 - 124,000 | D156: 4060.396003
A157: Adult-1,Dependents-4:124,001 - 149,000 | B157: Adult-1,Dependents-4 | C157: 124,001 - 149,000 | D157: 4379.501931
A158: Adult-1,Dependents-4:149,001 - 173,000 | B158: Adult-1,Dependents-4 | C158: 149,001 - 173,000 | D158: 4759.058578
A159: Adult-1,Dependents-4:173,001 - 198,000 | B159: Adult-1,Dependents-4 | C159: 173,001 - 198,000 | D159: 4948.345292
A160: Adult-1,Dependents-4:198,001 - 248,000 | B160: Adult-1,Dependents-4 | C160: 198,001 - 248,000 | D160: 5157.000562
A161: Adult-1,Dependents-4:248,001 - 309,000 | B161: Adult-1,Dependents-4 | C161: 248,001 - 309,000 | D161: 5700.64192
A162: Adult-1,Dependents-4:309,000 - 371,000 | B162: Adult-1,Dependents-4 | C162: 309,000 - 371,000 | D162: 6222.244449
A163: Adult-1,Dependents-4:371,001 - 619,000 | B163: Adult-1,Dependents-4 | C163: 371,001 - 619,000 | D163: 6401.569271
A165: =B165 & ":" & C165 -> Adult-1,Dependents-5:0 - 25,000 | B165: Adult-1,Dependents-5 | C165: 0 - 25,000 | D165: 3937.586206
A166: Adult-1,Dependents-5:25,001 - 37,000 | B166: Adult-1,Dependents-5 | C166: 25,001 - 37,000 | D166: 3937.586206
A167: Adult-1,Dependents-5:37,001 - 50,000 | B167: Adult-1,Dependents-5 | C167: 37,001 - 50,000 | D167: 3937.586206
A168: Adult-1,Dependents-5:50,001 - 62,000 | B168: Adult-1,Dependents-5 | C168: 50,001 - 62,000 | D168: 3937.586206
A169: Adult-1,Dependents-5:62,001 - 74,000 | B169: Adult-1,Dependents-5 | C169: 62,001 - 74,000 | D169: 3937.586206
A170: Adult-1,Dependents-5:74,001 - 99,000 | B170: Adult-1,Dependents-5 | C170: 74,001 - 99,000 | D170: 4177.141809
A171: Adult-1,Dependents-5:99,001 - 124,000 | B171: Adult-1,Dependents-5 | C171: 99,001 - 124,000 | D171: 4519.892897
A172: Adult-1,Dependents-5:124,001 - 149,000 | B172: Adult-1,Dependents-5 | C172: 124,001 - 149,000 | D172: 4838.338119
A173: Adult-1,Dependents-5:149,001 - 173,000 | B173: Adult-1,Dependents-5 | C173: 149,001 - 173,000 | D173: 5217.10877
A174: Adult-1,Dependents-5:173,001 - 198,000 | B174: Adult-1,Dependents-5 | C174: 173,001 - 198,000 | D174: 5406.00337
A175: Adult-1,Dependents-5:198,001 - 248,000 | B175: Adult-1,Dependents-5 | C175: 198,001 - 248,000 | D175: 5614.226722
A176: Adult-1,Dependents-5:248,001 - 309,000 | B176: Adult-1,Dependents-5 | C176: 248,001 - 309,000 | D176: 6156.742307
A177: Adult-1,Dependents-5:309,000 - 371,000 | B177: Adult-1,Dependents-5 | C177: 309,000 - 371,000 | D177: 6677.264775
A178: Adult-1,Dependents-5:371,001 - 619,000 | B178: Adult-1,Dependents-5 | C178: 371,001 - 619,000 | D178: 6856.218193
A180: =B180 & ":" & C180 -> Adult-1,Dependents-6:0 - 25,000 | B180: Adult-1,Dependents-6 | C180: 0 - 25,000 | D180: 4637.350029
A181: Adult-1,Dependents-6:25,001 - 37,000 | B181: Adult-1,Dependents-6 | C181: 25,001 - 37,000 | D181: 4637.350029
A182: Adult-1,Dependents-6:37,001 - 50,000 | B182: Adult-1,Dependents-6 | C182: 37,001 - 50,000 | D182: 4637.350029
A183: Adult-1,Dependents-6:50,001 - 62,000 | B183: Adult-1,Dependents-6 | C183: 50,001 - 62,000 | D183: 4637.350029
A184: Adult-1,Dependents-6:62,001 - 74,000 | B184: Adult-1,Dependents-6 | C184: 62,001 - 74,000 | D184: 4637.350029
A185: Adult-1,Dependents-6:74,001 - 99,000 | B185: Adult-1,Dependents-6 | C185: 74,001 - 99,000 | D185: 4637.350029
A186: Adult-1,Dependents-6:99,001 - 124,000 | B186: Adult-1,Dependents-6 | C186: 99,001 - 124,000 | D186: 4979.38979
A187: Adult-1,Dependents-6:124,001 - 149,000 | B187: Adult-1,Dependents-6 | C187: 124,001 - 149,000 | D187: 5297.174307
A188: Adult-1,Dependents-6:149,001 - 173,000 | B188: Adult-1,Dependents-6 | C188: 149,001 - 173,000 | D188: 5675.158963
A189: Adult-1,Dependents-6:173,001 - 198,000 | B189: Adult-1,Dependents-6 | C189: 173,001 - 198,000 | D189: 5863.661448
A190: Adult-1,Dependents-6:198,001 - 248,000 | B190: Adult-1,Dependents-6 | C190: 198,001 - 248,000 | D190: 6071.452883
A191: Adult-1,Dependents-6:248,001 - 309,000 | B191: Adult-1,Dependents-6 | C191: 248,001 - 309,000 | D191: 6612.842694
A192: Adult-1,Dependents-6:309,000 - 371,000 | B192: Adult-1,Dependents-6 | C192: 309,000 - 371,000 | D192: 7132.285102
A193: Adult-1,Dependents-6:371,001 - 619,000 | B193: Adult-1,Dependents-6 | C193: 371,001 - 619,000 | D193: 7310.867115
A195: =B195 & ":" & C195 -> Adult-2,Dependents-0:0 - 25,000 | B195: Adult-2,Dependents-0 | C195: 0 - 25,000 | D195: 2447.200868
A196: =B196 & ":" & C196 -> Adult-2,Dependents-0:25,001 - 37,000 | B196: Adult-2,Dependents-0 | C196: 25,001 - 37,000 | D196: 2447.200868
A197: Adult-2,Dependents-0:37,001 - 50,000 | B197: Adult-2,Dependents-0 | C197: 37,001 - 50,000 | D197: 2507.025896
A198: Adult-2,Dependents-0:50,001 - 62,000 | B198: Adult-2,Dependents-0 | C198: 50,001 - 62,000 | D198: 2592.643847
A199: Adult-2,Dependents-0:62,001 - 74,000 | B199: Adult-2,Dependents-0 | C199: 62,001 - 74,000 | D199: 2760.153678
A200: Adult-2,Dependents-0:74,001 - 99,000 | B200: Adult-2,Dependents-0 | C200: 74,001 - 99,000 | D200: 3001.839055
A201: Adult-2,Dependents-0:99,001 - 124,000 | B201: Adult-2,Dependents-0 | C201: 99,001 - 124,000 | D201: 3347.637877
A202: Adult-2,Dependents-0:124,001 - 149,000 | B202: Adult-2,Dependents-0 | C202: 124,001 - 149,000 | D202: 3668.914205
A203: Adult-2,Dependents-0:149,001 - 173,000 | B203: Adult-2,Dependents-0 | C203: 149,001 - 173,000 | D203: 4051.052597
A204: Adult-2,Dependents-0:173,001 - 198,000 | B204: Adult-2,Dependents-0 | C204: 173,001 - 198,000 | D204: 4241.627497
A205: Adult-2,Dependents-0:198,001 - 248,000 | B205: Adult-2,Dependents-0 | C205: 198,001 - 248,000 | D205: 4451.701321
A206: Adult-2,Dependents-0:248,001 - 309,000 | B206: Adult-2,Dependents-0 | C206: 248,001 - 309,000 | D206: 4999.040435
A207: Adult-2,Dependents-0:309,000 - 371,000 | B207: Adult-2,Dependents-0 | C207: 309,000 - 371,000 | D207: 5524.190828
A208: Adult-2,Dependents-0:371,001 - 619,000 | B208: Adult-2,Dependents-0 | C208: 371,001 - 619,000 | D208: 5704.735673
A210: =B210 & ":" & C210 -> Adult-2,Dependents-1:0 - 25,000 | B210: Adult-2,Dependents-1 | C210: 0 - 25,000 | D210: 2885.704413
A211: Adult-2,Dependents-1:25,001 - 37,000 | B211: Adult-2,Dependents-1 | C211: 25,001 - 37,000 | D211: 2885.704413
A212: Adult-2,Dependents-1:37,001 - 50,000 | B212: Adult-2,Dependents-1 | C212: 37,001 - 50,000 | D212: 2885.704413
A213: Adult-2,Dependents-1:50,001 - 62,000 | B213: Adult-2,Dependents-1 | C213: 50,001 - 62,000 | D213: 2971.241314
A214: Adult-2,Dependents-1:62,001 - 74,000 | B214: Adult-2,Dependents-1 | C214: 62,001 - 74,000 | D214: 3138.592926
A215: Adult-2,Dependents-1:74,001 - 99,000 | B215: Adult-2,Dependents-1 | C215: 74,001 - 99,000 | D215: 3380.049729
A216: Adult-2,Dependents-1:99,001 - 124,000 | B216: Adult-2,Dependents-1 | C216: 99,001 - 124,000 | D216: 3725.521683
A217: Adult-2,Dependents-1:124,001 - 149,000 | B217: Adult-2,Dependents-1 | C217: 124,001 - 149,000 | D217: 4046.494324
A218: Adult-2,Dependents-1:149,001 - 173,000 | B218: Adult-2,Dependents-1 | C218: 149,001 - 173,000 | D218: 4428.271499
A219: Adult-2,Dependents-1:173,001 - 198,000 | B219: Adult-2,Dependents-1 | C219: 173,001 - 198,000 | D219: 4618.666177
A220: Adult-2,Dependents-1:198,001 - 248,000 | B220: Adult-2,Dependents-1 | C220: 198,001 - 248,000 | D220: 4828.541508
A221: Adult-2,Dependents-1:248,001 - 309,000 | B221: Adult-2,Dependents-1 | C221: 248,001 - 309,000 | D221: 5375.363249
A222: Adult-2,Dependents-1:309,000 - 371,000 | B222: Adult-2,Dependents-1 | C222: 309,000 - 371,000 | D222: 5900.017242
A223: Adult-2,Dependents-1:371,001 - 619,000 | B223: Adult-2,Dependents-1 | C223: 371,001 - 619,000 | D223: 6080.391426
A225: =B225 & ":" & C225 -> Adult-2,Dependents-2:0 - 25,000 | B225: Adult-2,Dependents-2 | C225: 0 - 25,000 | D225: 3200.928984
A226: Adult-2,Dependents-2:25,001 - 37,000 | B226: Adult-2,Dependents-2 | C226: 25,001 - 37,000 | D226: 3200.928984
A227: Adult-2,Dependents-2:37,001 - 50,000 | B227: Adult-2,Dependents-2 | C227: 37,001 - 50,000 | D227: 3200.928984
A228: Adult-2,Dependents-2:50,001 - 62,000 | B228: Adult-2,Dependents-2 | C228: 50,001 - 62,000 | D228: 3286.563241
A229: Adult-2,Dependents-2:62,001 - 74,000 | B229: Adult-2,Dependents-2 | C229: 62,001 - 74,000 | D229: 3454.104933
A230: Adult-2,Dependents-2:74,001 - 99,000 | B230: Adult-2,Dependents-2 | C230: 74,001 - 99,000 | D230: 3695.836178
A231: Adult-2,Dependents-2:99,001 - 124,000 | B231: Adult-2,Dependents-2 | C231: 99,001 - 124,000 | D231: 4041.701097
A232: Adult-2,Dependents-2:124,001 - 149,000 | B232: Adult-2,Dependents-2 | C232: 124,001 - 149,000 | D232: 4363.038531
A233: Adult-2,Dependents-2:149,001 - 173,000 | B233: Adult-2,Dependents-2 | C233: 149,001 - 173,000 | D233: 4745.249781
A234: Adult-2,Dependents-2:173,001 - 198,000 | B234: Adult-2,Dependents-2 | C234: 173,001 - 198,000 | D234: 4935.860575
A235: Adult-2,Dependents-2:198,001 - 248,000 | B235: Adult-2,Dependents-2 | C235: 198,001 - 248,000 | D235: 5145.974808
A236: Adult-2,Dependents-2:248,001 - 309,000 | B236: Adult-2,Dependents-2 | C236: 248,001 - 309,000 | D236: 5693.418161
A237: Adult-2,Dependents-2:309,000 - 371,000 | B237: Adult-2,Dependents-2 | C237: 309,000 - 371,000 | D237: 6218.668568
... 66 more rows

Sheet Serviceability Calc (hidden)
A1: Serviceability Cell Calculation
B3: =Serviceability!D49&" (After Tax Rates Applied)" -> Available Income (After Tax Rates Applied) | C3: =Serviceability!L49 -> 0
B4: Divided by
B5: =Serviceability!D72 -> Total Monthly Commitments | C5: =SUM(Serviceability!L55:L71) -> 0
A6: Less | B6: =Serviceability!$D$53&" - "&Serviceability!E55 -> RedZed Loan Applied For - Loan 1 | C6: =-Serviceability!L55 -> 0
A7: Less | B7: =Serviceability!$D$53&" - "&Serviceability!E56 -> RedZed Loan Applied For - Loan 2 | C7: =-Serviceability!L56 -> 0
A8: Less | B8: =Serviceability!$D$53&" - "&Serviceability!E57 -> RedZed Loan Applied For - Loan 3 | C8: =-Serviceability!L57 -> 0
A9: Plus | B9: =Serviceability!$D$53&" - "&Tables!A32 -> RedZed Loan Applied For - Buffered Loan 1 | C9: =Tables!B32 -> 0
A10: Plus | B10: =Serviceability!$D$53&" - "&Tables!A33 -> RedZed Loan Applied For - Buffered Loan 2 | C10: =Tables!B33 -> 0
A11: Plus | B11: =Serviceability!$D$53&" - "&Tables!A34 -> RedZed Loan Applied For - Buffered Loan 3 | C11: =Tables!B34 -> 0
A12: Less | B12: =Serviceability!$D$60&": "&Serviceability!E60 -> Existing Loans: Loan 1 - Existing Secured | C12: =-Serviceability!L60 -> 0
A13: Less | B13: =Serviceability!$D$60&": "&Serviceability!E61 -> Existing Loans: Loan 2 - Existing Secured | C13: =-Serviceability!L61 -> 0
A14: Plus | B14: =Serviceability!$D$60&": "&Tables!A38 -> Existing Loans: Buffered Loan 1 | C14: =Tables!C38 -> 0
A15: Plus | B15: =Serviceability!$D$60&": "&Tables!A39 -> Existing Loans: Buffered Loan 2 | C15: =Tables!C39 -> 0
A16: Plus | B16: =Tables!A43 -> Fees - Loan 1 | C16: =Tables!C43 -> 0
A17: Plus | B17: =Tables!A44 -> Fees - Loan 2 | C17: =Tables!C44 -> 0
A18: Plus | B18: =Tables!A45 -> Fees - Loan 3 | C18: =Tables!C45 -> 0
B20: Total Monthly Commitments (After Repayment Buffering & Fees) | C20: =SUM(C5:C19) -> 0
B22: =Serviceability!I75&" - Calculated as:" -> - Calculated as: | C22: =ROUNDUP(C3/C20,2) -> 

Sheet Tax Calc (hidden)
A1: Tax Calc
A3: Annual Gross | D3: Gross | E3: Tax | F3: Medicare | G3: Income offset | H3: Net | I3: Net Monthly
A5: Applicant / G'Tor 1 | B5: Salary / Self Employed | D5: =Serviceability!G13 -> 0 | E5: =IF(D5<Tables!$A$6,0,IF(AND(D5>Tables!$A$6,D5<Tables!$A$7),(D5-Tables!$A$6)*Tables!$C$6,IF(AND(D5>Tables!$A$7,D5<Tables!$A$8),Tables!$D$7+(D5-Tables!$A$7)*Tables!$C$7,IF(AND(D5>Tables!$A$8,D5<Tables!$A$9),Tables!$D$8+(D5-Tables!$A$8)*Tables!$C$8,IF(D5>Tables!$A$9,Tables!$D$9+(D5-Tables!$A$9)*Tables!$C$9))))) -> 0 | F5: =D5*Tables!C$16 -> 0 | G5: =IFERROR(((D5-VLOOKUP(D5,$A$29:$D$33,1,TRUE))*VLOOKUP(D5,$A$29:$D$33,3,TRUE)+VLOOKUP(D5,$A$29:$D$33,4,TRUE)),0)+IFERROR((IF(D5>66667,66667-45001,(D5-VLOOKUP(D5,$A$41:$D$43,1,TRUE)))*VLOOKUP(D5,$A$41:$D$43,3,TRUE)+VLOOKUP(D5,$A$41:$D$43,4,TRUE)),0) -> 0 | H5: =D5-E5-F5+G5 -> 0 | I5: =H5/12 -> 0
A6: Applicant / G'Tor 2 | B6: Salary / Self Employed | D6: =Serviceability!G14 -> 0 | E6: =IF(D6<Tables!$A$6,0,IF(AND(D6>=Tables!$A$6,D6<Tables!$A$7),(D6-Tables!$A$6)*Tables!$C$6,IF(AND(D6>=Tables!$A$7,D6<Tables!$A$8),Tables!$D$7+(D6-Tables!$A$7)*Tables!$C$7,IF(AND(D6>=Tables!$A$8,D6<Tables!$A$9),Tables!$D$8+(D6-Tables!$A$8)*Tables!$C$8,IF(D6>=Tables!$A$9,Tables!$D$9+(D6-Tables!$A$9)*Tables!$C$9))))) -> 0 | F6: =D6*Tables!C$16 -> 0 | G6: =IFERROR(((D6-VLOOKUP(D6,$A$29:$D$33,1,TRUE))*VLOOKUP(D6,$A$29:$D$33,3,TRUE)+VLOOKUP(D6,$A$29:$D$33,4,TRUE)),0)+IFERROR((IF(D6>66667,66667-45001,(D6-VLOOKUP(D6,$A$41:$D$43,1,TRUE)))*VLOOKUP(D6,$A$41:$D$43,3,TRUE)+VLOOKUP(D6,$A$41:$D$43,4,TRUE)),0) -> 0 | H6: =D6-E6-F6+G6 -> 0 | I6: =H6/12 -> 0
A7: Applicant / G'Tor 3 | B7: Salary / Self Employed | D7: =Serviceability!G15 -> 0 | E7: =IF(D7<Tables!$A$6,0,IF(AND(D7>=Tables!$A$6,D7<Tables!$A$7),(D7-Tables!$A$6)*Tables!$C$6,IF(AND(D7>=Tables!$A$7,D7<Tables!$A$8),Tables!$D$7+(D7-Tables!$A$7)*Tables!$C$7,IF(AND(D7>=Tables!$A$8,D7<Tables!$A$9),Tables!$D$8+(D7-Tables!$A$8)*Tables!$C$8,IF(D7>=Tables!$A$9,Tables!$D$9+(D7-Tables!$A$9)*Tables!$C$9))))) -> 0 | F7: =D7*Tables!C$16 -> 0 | G7: 0 | H7: 0 | I7: =H7/12 -> 0
A8: Applicant / G'Tor 4 | B8: Salary / Self Employed | D8: =Serviceability!G16 -> 0 | E8: =IF(D8<Tables!$A$6,0,IF(AND(D8>=Tables!$A$6,D8<Tables!$A$7),(D8-Tables!$A$6)*Tables!$C$6,IF(AND(D8>=Tables!$A$7,D8<Tables!$A$8),Tables!$D$7+(D8-Tables!$A$7)*Tables!$C$7,IF(AND(D8>=Tables!$A$8,D8<Tables!$A$9),Tables!$D$8+(D8-Tables!$A$8)*Tables!$C$8,IF(D8>=Tables!$A$9,Tables!$D$9+(D8-Tables!$A$9)*Tables!$C$9))))) -> 0 | F8: =D8*Tables!C$16 -> 0 | G8: 0 | H8: 0 | I8: =H8/12 -> 0
A19: Test lower and middle income offset | D19: Formula | E19: ( income - income lower range ) *offset rate + baseline
A21: income | B21: offset baseline | C21: Income lower range | D21: Income - Lower range | E21: offset reduced % | F21: offset reduced amount | G21: offset amount
A22: 80000 | B22: =VLOOKUP(A22,A29:D33,4,TRUE) -> 0 | C22: =VLOOKUP(A22,A29:D33,1,TRUE) -> 48001 | D22: =A22-C22 -> 31999 | E22: =VLOOKUP(A22,A29:D33,3,TRUE) -> 0 | F22: =+D22*E22 -> 0 | G22: =SUM(B22,F22) -> 0
A26: Lower and Middle income offset
A28: Wages Over | B28: Not to Exceed | C28: Tax Rate
A29: 1 | B29: 37000 | D29: 0
A30: =B29+1 -> 37001 | B30: 48000 | C30: 0 | D30: 0
A31: =B30+1 -> 48001 | B31: 90000 | C31: 0 | D31: 0
A32: =B31+1 -> 90001 | B32: 126000 | C32: 0 | D32: 0
A33: =B32+1 -> 126001 | C33: 0 | D33: 0
A38: Low Income offset
A40: Wages Over | B40: Not to Exceed | C40: Tax Rate
A41: 1 | B41: 37500 | D41: 0 | K41: =I41*52 -> 0
A42: =B41+1 -> 37501 | B42: 45000 | C42: 0 | D42: 0
A43: =B42+1 -> 45001 | B43: 66667 | C43: 0 | D43: 0
A48: Test low income
A50: income | B50: offset baseline | C50: Income lower range | D50: Income - Lower range | E50: offset reduced % | F50: offset reduced amount | G50: offset amount
A51: 80000 | B51: =VLOOKUP(A51,A41:D43,4,TRUE) -> 0 | C51: =VLOOKUP(A51,A41:D43,1,TRUE) -> 45001 | D51: =IF(A51>66667, 66667-45001, A51-C51) -> 21666 | E51: =VLOOKUP(A51,A41:D43,3,TRUE) -> 0 | F51: =+D51*E51 -> 0 | G51: =SUM(B51,F51) -> 0

Sheet User Problems (hidden)
A1: # | B1: Date | C1: Submitted By | D1: Sheet Name (if applicable) | E1: Problem | F1: Initial Review Assessment | G1: Review Result Date | H1: Review With User | I1: Review Result or Action to Take | J1: Sheets Affected | K1: Development Version # | L1: Type | M1: Estimate (hrs) | N1: Actual | O1: Status | P1: Date Unit Tested | Q1: Release Version #
A2: 1 | B2: 2017-04-06 | C2: Bill Slattery | E2: What we are trying to achieve is a stress test of servicing capacity at the higher of; 1. The selected interest rate + 2% or 2. 7% This change should only apply to Residential loans. | K2: ='Version Control'!C2 -> V6.4 Test | L2: Enhancement | O2: Completed | P2: 2017-04-10 | Q2: ='Version Control'!$C$9 -> v6.5
A3: 2 | B3: 2017-04-10 | C3: Trevor Smith | E3: The tax table in the Residential calculator is not the same as in the Consolidated Calculator. Looks like the Residential Calculator was not updated for the 2017/2018 change to the upper limit for the 32.5% rate (ie from $80000 to $87000). | F3: Change the tax table in the Residential Calculator in expectation you want it to match that in the Consolidated Calculator. | G3: 2017-04-10 | H3: Bill Slattery | I3: Change as recommended | K3: ='Version Control'!C3 -> V6.4 Test2 (v6.42) | L3: Bug | O3: Completed | P3: 2017-04-10 | Q3: ='Version Control'!$C$9 -> v6.5
A4: 3 | B4: 2017-04-24 | C4: Bill Slattery | D4: Serviceability Calc | E4: Add Serviceabilty Calculation Sheet as per Consolidated User Problem #131. | F4: Name as "Serviceability Calc" | K4: ='Version Control'!$C$4 -> V6.6 Test (v6.43) | L4: Enhancement | O4: Completed | P4: 2017-05-01 | Q4: ='Version Control'!$C$9 -> v6.5
A5: 4 | B5: 2017-04-24 | C5: Mario Lorenzi | E5: Add two macros: -Ctl/Shift/B to unhide the calculation sheets -Ctl/Shift/H to hide the calculation sheets | K5: ='Version Control'!$C$4 -> V6.6 Test (v6.43) | L5: Enhancement | O5: Completed | P5: 2017-05-01 | Q5: ='Version Control'!$C$9 -> v6.5
A6: 5 | B6: 2017-04-24 | C6: Mario Lorenzi | D6: Tables | E6: Change Company Tax Rate to 28.5% | F6: Set up a a new Company Tax Table on Tables sheet. Change Company Income Calculation (Cell K18) to reference the new Company Tax Table. | K6: ='Version Control'!$C$4 -> V6.6 Test (v6.43) | L6: Data Maintenance | O6: Completed | P6: 2017-05-01 | Q6: ='Version Control'!$C$9 -> v6.5
A7: 6 | B7: 2017-04-24 | C7: Mario Lorenzi | D7: Serviceability | E7: Add Interest Only Term cells for RedZed Loans 1 and 2 on Serviceability sheet. Change the Rate buffering calculation to use the net term (Total Term less Interest Only Term) | K7: ='Version Control'!$C$4 -> V6.6 Test (v6.43) | L7: Enhancement | O7: Completed | P7: 2017-05-01 | Q7: ='Version Control'!$C$9 -> v6.5
A8: 7 | B8: 2017-04-24 | C8: Mario Lorenzi | D8: Serviceability | E8: Add Source of Other Incomes cell for each of the Other Regular Monthly Income lines on the Serviceability sheets. | K8: ='Version Control'!$C$4 -> V6.6 Test (v6.43) | L8: Enhancement | O8: Completed | P8: 2017-05-01 | Q8: ='Version Control'!$C$9 -> v6.5
A9: 8 | B9: 2017-04-24 | C9: Mario Lorenzi | D9: Serviceability | E9: Change Company Income heading to display "Company Income (if applicable)" | K9: ='Version Control'!$C$4 -> V6.6 Test (v6.43) | L9: Enhancement | O9: Completed | P9: 2017-05-01 | Q9: ='Version Control'!$C$9 -> v6.5
A10: 9 | B10: 2017-04-24 | C10: Mario Lorenzi | D10: Serviceability | E10: Swap columns displaying Existing & New v Rental Income/Rental Income | K10: ='Version Control'!$C$4 -> V6.6 Test (v6.43) | L10: Enhancement | O10: Completed | P10: 2017-05-01 | Q10: ='Version Control'!$C$9 -> v6.5
A11: 10 | B11: 2017-04-24 | C11: Mario Lorenzi | D11: Tables | E11: Check Monthly Service Fee calculation - to assume entry of Residential Loans only - calculated at $15 per month | K11: ='Version Control'!$C$4 -> V6.6 Test (v6.43) | L11: Bug | O11: Completed | P11: 2017-05-01 | Q11: ='Version Control'!$C$9 -> v6.5
A12: 11 | B12: 2017-04-24 | C12: Mario Lorenzi | D12: Serviceability | E12: Company Income headings realigned to display above the detail line | K12: ='Version Control'!$C$4 -> V6.6 Test (v6.43) | L12: Enhancement | O12: Completed | P12: 2017-05-01 | Q12: ='Version Control'!$C$9 -> v6.5
A13: 12 | B13: 2017-04-24 | C13: Mario Lorenzi | D13: Serviceability | E13: Company Income section moved to display after Rental Income | K13: ='Version Control'!$C$4 -> V6.6 Test (v6.43) | L13: Enhancement | O13: Completed | P13: 2017-05-01 | Q13: ='Version Control'!$C$9 -> v6.5
A14: 13 | B14: 2017-04-24 | C14: Mario Lorenzi | D14: Serviceability | E14: Change Personal Income descriptors from "Guarantor 1, 2, 3, and 4" to "Applicant / Guarantor 1, 2, 3, and 4" | K14: ='Version Control'!$C$4 -> V6.6 Test (v6.43) | L14: Enhancement | O14: Completed | P14: 2017-05-01 | Q14: ='Version Control'!$C$9 -> v6.5
A15: 14 | B15: 2017-04-24 | C15: Mario Lorenzi | D15: Tables | E15: Tables Sheet - Highlight in yellow those data cells that can be changed to reflect legislation or company policy changes. | K15: ='Version Control'!$C$4 -> V6.6 Test (v6.43) | L15: Enhancement | O15: Completed | P15: 2017-05-01 | Q15: ='Version Control'!$C$9 -> v6.5
A16: 15 | B16: 2017-06-08 | C16: Mario Lorenzi | D16: Tax Calc | E16: Tax Calc Sheet - delete Other Income Cells A10 to I13 | K16: ='Version Control'!$C$5 -> V6.8 Test (v6.44) | L16: Enhancement | O16: Completed | P16: 2017-06-15 | Q16: ='Version Control'!$C$9 -> v6.5
A17: 16 | B17: 2017-06-08 | C17: Mario Lorenzi | D17: Tax Calc | E17: Tax Calc Sheet - delete "Correct Formula For Serviceability - Don’t Think Arm Can Do This" Cells L1 to R25 | K17: ='Version Control'!$C$5 -> V6.8 Test (v6.44) | L17: Enhancement | O17: Completed | P17: 2017-06-15 | Q17: ='Version Control'!$C$9 -> v6.5
A18: 17 | B18: 2017-06-08 | C18: Mario Lorenzi | D18: Serviceability | E18: Fix formatting of Financier Cells for Existing Loans | K18: ='Version Control'!$C$5 -> V6.8 Test (v6.44) | L18: Bug | O18: Completed | P18: 2017-06-15 | Q18: ='Version Control'!$C$9 -> v6.5
A19: 18 | B19: 2017-06-19 | C19: Trevor Smith | D19: User Problems Version Control | E19: Add Sheets for User Problems and Version Control. | K19: ='Version Control'!$C$6 -> V6.9 (v6.45) | L19: Enhancement | O19: Completed | P19: 2017-06-20 | Q19: ='Version Control'!$C$9 -> v6.5
A20: 19 | B20: 2017-06-19 | C20: Angelo Klidomitis | D20: Serviceability | E20: Change Look & Feel as per 4.0 ServiceabilityCalculator.xlsx | K20: ='Version Control'!$C$6 -> V6.9 (v6.45) | L20: Enhancement | O20: Completed | P20: 2017-06-21 | Q20: ='Version Control'!$C$9 -> v6.5
A21: 20 | B21: 2017-05-22 | C21: Mario Lorenzi & Bill Slattery | D21: Serviceability | E21: Increase readability of printed version of the sheet | K21: ='Version Control'!C7 -> V6.10 (v6.46) | L21: Enhancement | O21: Completed | P21: 2017-06-26 | Q21: ='Version Control'!$C$9 -> v6.5
A22: 21 | B22: 2017-06-29 | C22: Mario Lorenzi | D22: Serviceability | E22: 1) Borders missing for Enter Source of Income, Rental Income, Maintenance, & Other Fixed Monthly Repayments. 2) Enter a zero in each dollar entry cell so the user is aware it is available for entry. | K22: ='Version Control'!C8 -> v6.47 Pending | L22: Enhancement & Bug | O22: Completed | P22: 2017-06-29 | Q22: ='Version Control'!$C$9 -> v6.5
A23: 22 | B23: 2018-11-20 | C23: Lorraine Taylor | D23: Servicebility | E23: IF more then three adult in one household please display the mssage | K23: V7.3 | O23: Completed | P23: 2018-11-20 | Q23: V7.3
A24: 23
A25: 24
A26: 25
A27: 26
A28: 27
A29: 28
A30: 29
A31: 30
A32: 31
A33: 32
A34: 33

Sheet Version Control (hidden)
A1: Name | B1: Date | C1: Version # | D1: Development Version File Name | E1: Changes | F1: Released Version | H1: Current Version | I1: =VLOOKUP($J$1,B2:$I$3984,8,FALSE) -> v10.24 230823 | J1: =MAX(B2:B3984) -> 2023-08-23
A2: Trevor Smith | B2: 2017-04-10 | C2: V6.4 Test | D2: K:\IT\Change_Work Requests\Work Request\WR004 - Commercial Calculator\02 Residential Calculator\2017 05 Changes\4. REDZED-Serviceability-170410-V6.4 Test2.xls | E2: User Problem 1 | G2: =IFERROR(VLOOKUP(MONTH(B2),'Day and Months Table'!A:B,2,FALSE)&VLOOKUP(DAY(B2),'Day and Months Table'!A:B,2,FALSE),"N/A") -> 0410 | H2: =RIGHT(YEAR(B2),2)&G2 -> 170410 | I2: =CONCATENATE(C2," ",H2) -> V6.4 Test 170410
A3: Trevor Smith | B3: 2017-04-10 | C3: V6.4 Test2 (v6.42) | D3: K:\IT\Change_Work Requests\Work Request\WR004 - Commercial Calculator\02 Residential Calculator\2017 05 Changes\4. REDZED-Serviceability-170410-V6.4 Test.xls | E3: User Problem 2 | G3: =IFERROR(VLOOKUP(MONTH(B3),'Day and Months Table'!A:B,2,FALSE)&VLOOKUP(DAY(B3),'Day and Months Table'!A:B,2,FALSE),"N/A") -> 0410 | H3: =RIGHT(YEAR(B3),2)&G3 -> 170410 | I3: =CONCATENATE(C3," ",H3) -> V6.4 Test2 (v6.42) 170410
A4: Trevor Smith | B4: 2017-05-01 | C4: V6.6 Test (v6.43) | D4: K:\IT\Change_Work Requests\Work Request\WR004 - Commercial Calculator\02 Residential Calculator\2017 05 Changes\4. REDZED-Serviceability-170410-V6.6 Test.xls | E4: User Problems 3 - 14 inclusive | G4: =IFERROR(VLOOKUP(MONTH(B4),'Day and Months Table'!A:B,2,FALSE)&VLOOKUP(DAY(B4),'Day and Months Table'!A:B,2,FALSE),"N/A") -> 0501 | H4: 170501 | I4: V6.6 Test (v6.43) 170501
A5: Trevor Smith | B5: 2017-05-15 | C5: V6.8 Test (v6.44) | D5: K:\IT\Change_Work Requests\Work Request\WR004 - Commercial Calculator\02 Residential Calculator\2017 05 Changes\4. REDZED-Serviceability-170410-V6.8 Test.xls | E5: User Problems 15 - 17 inclusive | G5: =IFERROR(VLOOKUP(MONTH(B5),'Day and Months Table'!A:B,2,FALSE)&VLOOKUP(DAY(B5),'Day and Months Table'!A:B,2,FALSE),"N/A") -> 0515 | H5: 170515 | I5: V6.8 Test (v6.44) 170515
A6: Trevor Smith | B6: 2017-06-21 | C6: V6.9 (v6.45) | D6: K:\IT\Change_Work Requests\Work Request\WR004 - Commercial Calculator\02 Residential Calculator\2017 05 Changes\4. REDZED-Serviceability-170410-V6.9.xls | E6: User Problem 18 - 19 | F6: Issued to Mario Lorenzi for testing 20 June 2017 | G6: =IFERROR(VLOOKUP(MONTH(B6),'Day and Months Table'!A:B,2,FALSE)&VLOOKUP(DAY(B6),'Day and Months Table'!A:B,2,FALSE),"N/A") -> 0621 | H6: 170621 | I6: V6.9 (v6.45) 170621
A7: Trevor Smith | B7: 2017-06-27 | C7: V6.10 (v6.46) | D7: K:\IT\Change_Work Requests\Work Request\WR004 - Commercial Calculator\02 Residential Calculator\2017 05 Changes\4. REDZED-Serviceability-170410-V6.10.xls A changed versioning system for both this Residential Calculator and the Commercial Calculator was agreed with Tina Georgiadis 26 June 2015 (after receiving feedback from Angel Klidomitis). The last version of the Residential Calculator was named "4. REDZED-Serviceability-170410-V6.4.xls". The naming convention is being changed to "REDZED-Serviceability Type (ie Residential or Commercial) Version Number.xls". Each release will have a date added as a suffix in the format yymmdd. Because the upcoming release does not contain major ammendments it will be named "REDZED-Serviceability Residential v6.5 yymmdd.xls". This being the case, the naming of the development files should have been as per the bracketed values in the Version # cells (eg 4. REDZED-Serviceability-170410-V6.4 Test.xls should have been 4. REDZED-Serviceability-170410-V6.41.xls) To move to the new numbering system this version was copied and renamed and saved to the new development and release folder structure 26 June 2017. The new location and file name is K:\Credit\Servicing Calculator - Residential\Development - Residential\REDZED-Serviceability Residential V0.646.xlsm. The released version number for this series of amendments will be v6.5 with a date added in the format yymmdd. | E7: A renamed version + User Problem 20 | G7: =IFERROR(VLOOKUP(MONTH(B7),'Day and Months Table'!A:B,2,FALSE)&VLOOKUP(DAY(B7),'Day and Months Table'!A:B,2,FALSE),"N/A") -> 0627 | H7: 170627 | I7: V6.10 (v6.46) 170627
A8: Trevor Smith | B8: 2017-06-29 | C8: v6.47 Pending | D8: K:\Credit\Servicing Calculator - Residential\Development - Residential\REDZED-Serviceability Residential V0.647.xlsm | E8: User Problem 21 | G8: =IFERROR(VLOOKUP(MONTH(B8),'Day and Months Table'!A:B,2,FALSE)&VLOOKUP(DAY(B8),'Day and Months Table'!A:B,2,FALSE),"N/A") -> 0629 | H8: 170629 | I8: v6.47 Pending 170629
A9: Trevor Smith | B9: 2017-06-30 | C9: v6.5 | F9: K:\Credit\Servicing Calculator - Residential\Current Released Version - Residential\REDZED-Serviceability Residential V6.5.xlsm | G9: =IFERROR(VLOOKUP(MONTH(B9),'Day and Months Table'!A:B,2,FALSE)&VLOOKUP(DAY(B9),'Day and Months Table'!A:B,2,FALSE),"N/A") -> 0630 | H9: 170630 | I9: v6.5 170630
A10: Mayank Badhen | B10: 2018-06-25 | C10: V7.1A | D10: Updated the living expense | G10: =IFERROR(VLOOKUP(MONTH(B10),'Day and Months Table'!A:B,2,FALSE)&VLOOKUP(DAY(B10),'Day and Months Table'!A:B,2,FALSE),"N/A") -> 0625 | H10: 180625 | I10: V7.1A 180625
A11: Mayank Badhen | B11: 2018-07-25 | C11: V7.2 | D11: updated living expense for Company selecting household is mandatory updated the tax scale compnay income is always attached to household 1 | G11: =IFERROR(VLOOKUP(MONTH(B11),'Day and Months Table'!A:B,2,FALSE)&VLOOKUP(DAY(B11),'Day and Months Table'!A:B,2,FALSE),"N/A") -> 0725 | H11: 180725 | I11: V7.2 180725
A12: Mayank Badhen | B12: 2018-12-11 | C12: V7.2.1 | D12: IF more then three adult in one household please display the mssage | G12: =IFERROR(VLOOKUP(MONTH(B12),'Day and Months Table'!A:B,2,FALSE)&VLOOKUP(DAY(B12),'Day and Months Table'!A:B,2,FALSE),"N/A") -> 1211 | H12: 181211 | I12: V7.2.1 181211
A13: Mayank Badhen | B13: 2019-06-26 | C13: V7.3 | D13: credit card obligations | G13: =IFERROR(VLOOKUP(MONTH(B13),'Day and Months Table'!A:B,2,FALSE)&VLOOKUP(DAY(B13),'Day and Months Table'!A:B,2,FALSE),"N/A") -> 0626 | H13: 190626 | I13: V7.3 190626
A14: Mayank Badhen | B14: 2019-12-02 | C14: V7.4 | D14: IO term fixed | G14: =IFERROR(VLOOKUP(MONTH(B14),'Day and Months Table'!A:B,2,FALSE)&VLOOKUP(DAY(B14),'Day and Months Table'!A:B,2,FALSE),"N/A") -> 1202 | H14: 191202 | I14: V7.4 191202
G15: =IFERROR(VLOOKUP(MONTH(B15),'Day and Months Table'!A:B,2,FALSE)&VLOOKUP(DAY(B15),'Day and Months Table'!A:B,2,FALSE),"N/A") -> N/A | H15: 00N/A | I15: 00N/A
G16: =IFERROR(VLOOKUP(MONTH(B16),'Day and Months Table'!A:B,2,FALSE)&VLOOKUP(DAY(B16),'Day and Months Table'!A:B,2,FALSE),"N/A") -> N/A | H16: 00N/A | I16: 00N/A
G17: =IFERROR(VLOOKUP(MONTH(B17),'Day and Months Table'!A:B,2,FALSE)&VLOOKUP(DAY(B17),'Day and Months Table'!A:B,2,FALSE),"N/A") -> N/A | H17: 00N/A | I17: 00N/A
A18: John Jiang | B18: 2020-07-30 | C18: V10.0 | D18: 1. Residential calculator a. Introduction of a traffic light Pass, Refer to RZ or Fail notification. Pass >1.10, Refer >1.05 – 1.10, Fail below 1.05. The introduction of the Refer category is designed to encourage brokers to Refer deals where we don’t quite meet servicing requirements, but in discussion with RZ we may jointly find a way forward. Potentially these deals may be currently being sent to other lenders who have lower servicing ratio benchmarks). b. Creating a blank template. c. Removal of the tax calculation for company income to fall in line with the policy which states that we assess on NPBT. Other general changes including ensuring; 1. Living expenses were consistent across all selections (there were some errors & inconsistencies) 2. Tax scales were checked and amended for consistency. | G18: =IFERROR(VLOOKUP(MONTH(B18),'Day and Months Table'!A:B,2,FALSE)&VLOOKUP(DAY(B18),'Day and Months Table'!A:B,2,FALSE),"N/A") -> 0730 | H18: 200730 | I18: V10.0 200730
A19: John Jiang | B19: 2020-08-13 | C19: V10.0 Residential | D19: Changed footer | G19: =IFERROR(VLOOKUP(MONTH(B19),'Day and Months Table'!A:B,2,FALSE)&VLOOKUP(DAY(B19),'Day and Months Table'!A:B,2,FALSE),"N/A") -> 0813 | H19: 200813 | I19: V10.0 Residential 200813
A20: John Jiang | B20: 2020-11-16 | C20: V10.1 | D20: changed tax bracket to new 2020 tax regulation | G20: =IFERROR(VLOOKUP(MONTH(B20),'Day and Months Table'!A:B,2,FALSE)&VLOOKUP(DAY(B20),'Day and Months Table'!A:B,2,FALSE),"N/A") -> 1116 | H20: 201116 | I20: V10.1 201116
A21: John Jiang | B21: 2020-12-17 | C21: V10.11 | D21: change interest floor rate from 7% to 6% | G21: =IFERROR(VLOOKUP(MONTH(B21),'Day and Months Table'!A:B,2,FALSE)&VLOOKUP(DAY(B21),'Day and Months Table'!A:B,2,FALSE),"N/A") -> 1217 | H21: 201217 | I21: V10.11 201217
A22: John Jiang | B22: 2021-01-15 | C22: V10.12 | D22: Update HEM table according to Sept 2020 quarter data from HEM | G22: =IFERROR(VLOOKUP(MONTH(B22),'Day and Months Table'!A:B,2,FALSE)&VLOOKUP(DAY(B22),'Day and Months Table'!A:B,2,FALSE),"N/A") -> 0115 | H22: 210115 | I22: V10.12 210115
A23: John Jiang | B23: 2021-09-15 | C23: V10.13 | D23: Update HEM table according to 2021 June quarter HEM review data | G23: =IFERROR(VLOOKUP(MONTH(B23),'Day and Months Table'!A:B,2,FALSE)&VLOOKUP(DAY(B23),'Day and Months Table'!A:B,2,FALSE),"N/A") -> 0915 | H23: =RIGHT(YEAR(B23),2)&G23 -> 210915 | I23: =CONCATENATE(C23," ",H23) -> V10.13 210915
A24: John Jiang | B24: 2021-10-27 | C24: V10.14 | D24: Add a footnote in resi calculator only. | E24: For Company Borrowers DSR must be >1.10 | G24: =IFERROR(VLOOKUP(MONTH(B24),'Day and Months Table'!A:B,2,FALSE)&VLOOKUP(DAY(B24),'Day and Months Table'!A:B,2,FALSE),"N/A") -> 1027 | H24: =RIGHT(YEAR(B24),2)&G24 -> 211027 | I24: =CONCATENATE(C24," ",H24) -> V10.14 211027
A25: Shun | B25: 2022-04-06 | C25: V10.15 | D25: Add DTI Calculation | G25: =IFERROR(VLOOKUP(MONTH(B25),'Day and Months Table'!A:B,2,FALSE)&VLOOKUP(DAY(B25),'Day and Months Table'!A:B,2,FALSE),"N/A") -> 0406 | H25: 220406 | I25: V10.15 220406
A26: Shun | B26: 2022-06-16 | C26: V10.16 | D26: Update Buffer and Floor Rates && Add the Total Credit Card Limit values to the Total Debt value && Update HEM Rates Q1 2022 | G26: =IFERROR(VLOOKUP(MONTH(B26),'Day and Months Table'!A:B,2,FALSE)&VLOOKUP(DAY(B26),'Day and Months Table'!A:B,2,FALSE),"N/A") -> 0616 | H26: 220616 | I26: V10.16 220616
A27: Shun | B27: 2022-07-15 | C27: v10.17 | D27: Update tax rate | G27: =IFERROR(VLOOKUP(MONTH(B27),'Day and Months Table'!A:B,2,FALSE)&VLOOKUP(DAY(B27),'Day and Months Table'!A:B,2,FALSE),"N/A") -> 0715 | H27: 220715 | I27: v10.17 220715
A28: Shun | B28: 2022-08-22 | C28: v10.18 | D28: Update Hem Rate | G28: =IFERROR(VLOOKUP(MONTH(B28),'Day and Months Table'!A:B,2,FALSE)&VLOOKUP(DAY(B28),'Day and Months Table'!A:B,2,FALSE),"N/A") -> 0822 | H28: 220822 | I28: v10.18 220822
A29: Shun | B29: 2022-11-29 | C29: v10.19 | D29: Update Hem Rate | G29: =IFERROR(VLOOKUP(MONTH(B29),'Day and Months Table'!A:B,2,FALSE)&VLOOKUP(DAY(B29),'Day and Months Table'!A:B,2,FALSE),"N/A") -> 1129 | H29: 221129 | I29: v10.19 221129
A30: Shun | B30: 2023-03-06 | C30: v10.20 | D30: Update Hem Rate | G30: =IFERROR(VLOOKUP(MONTH(B30),'Day and Months Table'!A:B,2,FALSE)&VLOOKUP(DAY(B30),'Day and Months Table'!A:B,2,FALSE),"N/A") -> 0306 | H30: 230306 | I30: v10.20 230306
A31: Shun | B31: 2023-05-23 | C31: v10.21 | D31: Update Hem Rate | G31: =IFERROR(VLOOKUP(MONTH(B31),'Day and Months Table'!A:B,2,FALSE)&VLOOKUP(DAY(B31),'Day and Months Table'!A:B,2,FALSE),"N/A") -> 0523 | H31: 230523 | I31: v10.21 230523
A32: Shun | B32: 2023-08-03 | C32: v10.22 | D32: Split 3 Loans | G32: =IFERROR(VLOOKUP(MONTH(B32),'Day and Months Table'!A:B,2,FALSE)&VLOOKUP(DAY(B32),'Day and Months Table'!A:B,2,FALSE),"N/A") -> 0803 | H32: 230803 | I32: v10.22 230803
A33: Shun | B33: 2023-08-15 | C33: v10.23 | D33: Update APR Buffer | G33: =IFERROR(VLOOKUP(MONTH(B33),'Day and Months Table'!A:B,2,FALSE)&VLOOKUP(DAY(B33),'Day and Months Table'!A:B,2,FALSE),"N/A") -> 0815 | H33: 230815 | I33: v10.23 230815
A34: Shun | B34: 2023-08-23 | C34: v10.24 | D34: Update HEM Rate | G34: =IFERROR(VLOOKUP(MONTH(B34),'Day and Months Table'!A:B,2,FALSE)&VLOOKUP(DAY(B34),'Day and Months Table'!A:B,2,FALSE),"N/A") -> 0823 | H34: 230823 | I34: v10.24 230823

Sheet Day and Months Table (hidden)
A1: 1 | B1: 01
A2: 2 | B2: 02
A3: 3 | B3: 03
A4: 4 | B4: 04
A5: 5 | B5: 05
A6: 6 | B6: 06
A7: 7 | B7: 07
A8: 8 | B8: 08
A9: 9 | B9: 09
A10: 10 | B10: 10
A11: 11 | B11: 11
A12: 12 | B12: 12
A13: 13 | B13: 13
A14: 14 | B14: 14
A15: 15 | B15: 15
A16: 16 | B16: 16
A17: 17 | B17: 17
A18: 18 | B18: 18
A19: 19 | B19: 19
A20: 20 | B20: 20
A21: 21 | B21: 21
A22: 22 | B22: 22
A23: 23 | B23: 23
A24: 24 | B24: 24
A25: 25 | B25: 25
A26: 26 | B26: 26
A27: 27 | B27: 27
A28: 28 | B28: 28
A29: 29 | B29: 29
A30: 30 | B30: 30
A31: 31 | B31: 31
